[Event "*** Titled Tuesday Blitz"]
[Site "Chess.com"]
[Date "2021.03.02"]
[Round "4"]
[White "Treacherous_horse64"]
[Black "Piotrek1979"]
[Result "1/2-1/2"]
[WhiteElo "2596"]
[BlackElo "2359"]
[TimeControl "180+1"]
[EndTime "10:41:57 PST"]
[Termination "Game drawn by repetition"]

1. d4 {[%clk 0:03:00]} 1... d5 {[%clk 0:02:59.1]} 2. Nf3 {[%clk 0:02:58.2]} 2...
e6 {[%clk 0:03:00]} 3. c4 {[%clk 0:02:56.7]} 3... Nf6 {[%clk 0:02:58.2]} 4. Nc3
{[%clk 0:02:52.2]} 4... c6 {[%clk 0:02:58.3]} 5. Bf4 {[%clk 0:02:31.5]} 5...
Nbd7 {[%clk 0:02:54]} 6. e3 {[%clk 0:02:31.2]} 6... Be7 {[%clk 0:02:52.9]} 7.
Qc2 {[%clk 0:02:31.2]} 7... O-O {[%clk 0:02:52]} 8. Rc1 {[%clk 0:02:28.5]} 8...
a6 {[%clk 0:02:42.9]} 9. h3 {[%clk 0:02:25.8]} 9... b5 {[%clk 0:02:40]} 10. c5
{[%clk 0:02:21.6]} 10... a5 {[%clk 0:02:38.4]} 11. Bd3 {[%clk 0:02:19.7]} 11...
b4 {[%clk 0:02:37.7]} 12. Ne2 {[%clk 0:02:15.3]} 12... Ba6 {[%clk 0:02:37.8]}
13. O-O {[%clk 0:02:10.2]} 13... Bxd3 {[%clk 0:02:36.7]} 14. Qxd3 {[%clk
0:02:11.1]} 14... Ne4 {[%clk 0:02:37.3]} 15. a3 {[%clk 0:02:04.7]} 15... Qc8
{[%clk 0:02:25.8]} 16. axb4 {[%clk 0:02:00.8]} 16... axb4 {[%clk 0:02:25.1]} 17.
Ra1 {[%clk 0:02:00.3]} 17... Qb7 {[%clk 0:02:24.4]} 18. Ng3 {[%clk 0:01:59.4]}
18... f5 {[%clk 0:02:23.3]} 19. Ne5 {[%clk 0:01:57.4]} 19... Nxe5 {[%clk
0:02:22.2]} 20. Bxe5 {[%clk 0:01:58.3]} 20... Rxa1 {[%clk 0:02:18.7]} 21. Rxa1
{[%clk 0:01:57.7]} 21... Ra8 {[%clk 0:02:19.6]} 22. Rxa8+ {[%clk 0:01:52.3]}
22... Qxa8 {[%clk 0:02:19.4]} 23. Nxe4 {[%clk 0:01:53.1]} 23... fxe4 {[%clk
0:02:02.3]} 24. Qe2 {[%clk 0:01:53]} 24... g6 {[%clk 0:01:23.2]} 25. Qg4 {[%clk
0:01:51.2]} 25... Kf7 {[%clk 0:01:18.6]} 26. Qf4+ {[%clk 0:01:47.5]} 26... Kg8
{[%clk 0:01:17.8]} 27. Bd6 {[%clk 0:01:42.3]} 27... Bxd6 {[%clk 0:00:30.8]} 28.
Qxd6 {[%clk 0:01:35.2]} 28... Qa1+ {[%clk 0:00:29.3]} 29. Kh2 {[%clk 0:01:34.5]}
29... Qxb2 {[%clk 0:00:30.2]} 30. Qxc6 {[%clk 0:01:27.9]} 30... b3 {[%clk
0:00:22.1]} 31. Qd7 {[%clk 0:00:37.8]} 31... Qc2 {[%clk 0:00:20.4]} 32. c6
{[%clk 0:00:37.4]} 32... b2 {[%clk 0:00:20.4]} 33. c7 {[%clk 0:00:36.9]} 33...
b1=Q {[%clk 0:00:21.3]} 34. c8=Q+ {[%clk 0:00:36.7]} 34... Qxc8 {[%clk
0:00:21.4]} 35. Qxc8+ {[%clk 0:00:37.6]} 35... Kf7 {[%clk 0:00:21.9]} 36. Qh8
{[%clk 0:00:35.6]} 36... Qf1 {[%clk 0:00:19.5]} 37. Qxh7+ {[%clk 0:00:35.3]}
37... Kf6 {[%clk 0:00:19.5]} 38. Qh8+ {[%clk 0:00:33.6]} 38... Kf7 {[%clk
0:00:19.1]} 39. Qh7+ {[%clk 0:00:33.7]} 39... Kf6 {[%clk 0:00:18.8]} 40. Qh4+
{[%clk 0:00:34.3]} 40... Kf7 {[%clk 0:00:18.4]} 41. Qf4+ {[%clk 0:00:34.4]}
41... Ke7 {[%clk 0:00:18.3]} 42. h4 {[%clk 0:00:34]} 42... Qe2 {[%clk
0:00:17.6]} 43. Kg3 {[%clk 0:00:33.2]} 43... Qd1 {[%clk 0:00:14.9]} 44. Qc7+
{[%clk 0:00:30.9]} 44... Kf6 {[%clk 0:00:14.5]} 45. Qd8+ {[%clk 0:00:31.3]}
45... Kf7 {[%clk 0:00:14.2]} 46. Qd7+ {[%clk 0:00:31.4]} 46... Kf6 {[%clk
0:00:13.8]} 47. Qe8 {[%clk 0:00:30.7]} 47... Kg7 {[%clk 0:00:07.5]} 48. Qe7+
{[%clk 0:00:30.6]} 48... Kh6 {[%clk 0:00:06.8]} 49. Qxe6 {[%clk 0:00:30.9]}
49... Qb3 {[%clk 0:00:05.5]} 50. Qf6 {[%clk 0:00:29.5]} 50... Kh7 {[%clk
0:00:04.1]} 51. Qf7+ {[%clk 0:00:29.1]} 51... Kh6 {[%clk 0:00:04.2]} 52. Qe8
{[%clk 0:00:26.8]} 52... Kg7 {[%clk 0:00:03.7]} 53. h5 {[%clk 0:00:26]} 53...
gxh5 {[%clk 0:00:02.6]} 54. Qxh5 {[%clk 0:00:26.5]} 54... Qa2 {[%clk 0:00:02.3]}
55. Qe5+ {[%clk 0:00:26]} 55... Kf7 {[%clk 0:00:03.2]} 56. Qf4+ {[%clk
0:00:23.4]} 56... Kg6 {[%clk 0:00:04.1]} 57. Kg4 {[%clk 0:00:22.3]} 57... Kg7
{[%clk 0:00:03.7]} 58. Qe5+ {[%clk 0:00:22.2]} 58... Kf7 {[%clk 0:00:03.3]} 59.
Qf5+ {[%clk 0:00:22.5]} 59... Ke7 {[%clk 0:00:03.1]} 60. Kg5 {[%clk 0:00:22.4]}
60... Qc4 {[%clk 0:00:04]} 61. Qe5+ {[%clk 0:00:22.1]} 61... Kd7 {[%clk
0:00:04]} 62. Qg7+ {[%clk 0:00:21.6]} 62... Kc6 {[%clk 0:00:03.7]} 63. Qf6+
{[%clk 0:00:19.5]} 63... Kb5 {[%clk 0:00:04.6]} 64. Qd6 {[%clk 0:00:16.8]} 64...
Ka4 {[%clk 0:00:05.5]} 65. Qc5 {[%clk 0:00:15.6]} 65... Kb3 {[%clk 0:00:06.4]}
66. Qb6+ {[%clk 0:00:14.2]} 66... Kc2 {[%clk 0:00:05.5]} 67. Kf4 {[%clk
0:00:13.9]} 67... Kd2 {[%clk 0:00:06.4]} 68. Qb2+ {[%clk 0:00:14.2]} 68... Ke1
{[%clk 0:00:05.4]} 69. g4 {[%clk 0:00:14]} 69... Qc7+ {[%clk 0:00:06.3]} 70. Kf5
{[%clk 0:00:13.5]} 70... Qf7+ {[%clk 0:00:07.2]} 71. Ke5 {[%clk 0:00:13.8]}
71... Qg7+ {[%clk 0:00:07.3]} 72. Kxd5 {[%clk 0:00:14.1]} 72... Qxg4 {[%clk
0:00:08.2]} 73. Qb1+ {[%clk 0:00:13.3]} 73... Kxf2 {[%clk 0:00:07.5]} 74. Qxe4
{[%clk 0:00:14.2]} 74... Qd7+ {[%clk 0:00:06.4]} 75. Kc4 {[%clk 0:00:13.3]}
75... Qa4+ {[%clk 0:00:07.3]} 76. Kc5 {[%clk 0:00:13.5]} 76... Qa5+ {[%clk
0:00:07.1]} 77. Kd6 {[%clk 0:00:13.8]} 77... Qd8+ {[%clk 0:00:07.5]} 78. Ke5
{[%clk 0:00:14.1]} 78... Qe7+ {[%clk 0:00:07.2]} 79. Kf4 {[%clk 0:00:14.5]}
79... Qh4+ {[%clk 0:00:06.9]} 80. Kf5 {[%clk 0:00:13.3]} 80... Qh7+ {[%clk
0:00:06.9]} 81. Ke5 {[%clk 0:00:13.2]} 81... Qe7+ {[%clk 0:00:07.1]} 82. Kd5
{[%clk 0:00:13.2]} 82... Qb7+ {[%clk 0:00:06.7]} 83. Ke5 {[%clk 0:00:10.4]}
83... Qe7+ {[%clk 0:00:06.4]} 1/2-1/2

[Event "*** Titled Tuesday Blitz"]
[Site "Chess.com"]
[Date "2021.03.02"]
[Round "5"]
[White "WcmDominicToretto"]
[Black "Ladislav1969"]
[Result "0-1"]
[WhiteElo "1943"]
[BlackElo "2307"]
[TimeControl "180+1"]
[EndTime "10:50:40 PST"]
[Termination "Ladislav1969 won by resignation"]

1. e4 {[%clk 0:03:00.9]} 1... c5 {[%clk 0:02:59.9]} 2. Nc3 {[%clk 0:03:00.2]}
2... e6 {[%clk 0:03:00.8]} 3. f4 {[%clk 0:02:58.7]} 3... Nc6 {[%clk 0:03:00.2]}
4. Nf3 {[%clk 0:02:56.8]} 4... g6 {[%clk 0:02:54.8]} 5. Bb5 {[%clk 0:02:50.1]}
5... Nge7 {[%clk 0:02:47.6]} 6. O-O {[%clk 0:02:48.3]} 6... Bg7 {[%clk
0:02:45.9]} 7. d3 {[%clk 0:02:46.8]} 7... O-O {[%clk 0:02:40.6]} 8. Bd2 {[%clk
0:02:41.8]} 8... Nd4 {[%clk 0:02:39.7]} 9. Nxd4 {[%clk 0:02:39]} 9... cxd4
{[%clk 0:02:39.2]} 10. Ne2 {[%clk 0:02:37.9]} 10... d6 {[%clk 0:02:37.1]} 11. c3
{[%clk 0:02:37.1]} 11... dxc3 {[%clk 0:02:35.7]} 12. Nxc3 {[%clk 0:02:33]} 12...
Bxc3 {[%clk 0:02:32.8]} 13. Bxc3 {[%clk 0:02:32.4]} 13... Qb6+ {[%clk
0:02:33.5]} 14. Kh1 {[%clk 0:02:28.5]} 14... Qxb5 {[%clk 0:02:33.7]} 15. Qg4
{[%clk 0:02:27.6]} 15... Qh5 {[%clk 0:02:23.8]} 16. Qg3 {[%clk 0:02:24.8]} 16...
Nc6 {[%clk 0:02:15]} 17. f5 {[%clk 0:02:16.6]} 17... exf5 {[%clk 0:02:01]} 18.
Qh3 {[%clk 0:02:16.7]} 18... Qxh3 {[%clk 0:01:59.3]} 19. gxh3 {[%clk 0:02:15.3]}
19... fxe4 {[%clk 0:01:58.5]} 0-1

[Event "*** Titled Tuesday Blitz"]
[Site "Chess.com"]
[Date "2021.03.02"]
[Round "5"]
[White "slavenok"]
[Black "Genghis_K"]
[Result "0-1"]
[WhiteElo "2719"]
[BlackElo "2928"]
[TimeControl "180+1"]
[EndTime "10:51:42 PST"]
[Termination "Genghis_K won by resignation"]

1. e4 {[%clk 0:03:00.9]} 1... c6 {[%clk 0:02:24.2]} 2. d4 {[%clk 0:02:59.4]}
2... d5 {[%clk 0:02:24.7]} 3. exd5 {[%clk 0:03:00.3]} 3... cxd5 {[%clk 0:02:25]}
4. Nf3 {[%clk 0:03:01.2]} 4... Nc6 {[%clk 0:02:24.5]} 5. c4 {[%clk 0:03:02.1]}
5... Nf6 {[%clk 0:02:24.4]} 6. Nc3 {[%clk 0:03:03]} 6... e6 {[%clk 0:02:19.6]}
7. cxd5 {[%clk 0:03:03.9]} 7... Nxd5 {[%clk 0:02:19.6]} 8. Bb5 {[%clk
0:03:04.4]} 8... Be7 {[%clk 0:02:18.8]} 9. Ne5 {[%clk 0:03:03.9]} 9... Bd7
{[%clk 0:02:16.4]} 10. Nxd7 {[%clk 0:03:03]} 10... Qxd7 {[%clk 0:02:12.2]} 11.
O-O {[%clk 0:03:03.5]} 11... O-O {[%clk 0:02:11.2]} 12. Be3 {[%clk 0:03:03.6]}
12... a6 {[%clk 0:02:08.4]} 13. Ba4 {[%clk 0:03:03.3]} 13... Nxc3 {[%clk
0:01:46.7]} 14. bxc3 {[%clk 0:03:02.6]} 14... b5 {[%clk 0:01:46.6]} 15. Bc2
{[%clk 0:03:00.8]} 15... Na5 {[%clk 0:01:42.9]} 16. Qd3 {[%clk 0:02:58.7]} 16...
g6 {[%clk 0:01:42.1]} 17. Rac1 {[%clk 0:02:58.5]} 17... Nc4 {[%clk 0:01:41.1]}
18. Bh6 {[%clk 0:02:57]} 18... Rfe8 {[%clk 0:01:33.9]} 19. Bb3 {[%clk
0:02:57.3]} 19... Rac8 {[%clk 0:01:32.7]} 20. h3 {[%clk 0:02:55.6]} 20... Bf8
{[%clk 0:01:27.7]} 21. Bxf8 {[%clk 0:02:54.7]} 21... Rxf8 {[%clk 0:01:28.6]} 22.
h4 {[%clk 0:02:50.9]} 22... Qe7 {[%clk 0:01:25.8]} 23. h5 {[%clk 0:02:49.9]}
23... Qg5 {[%clk 0:01:24.6]} 24. hxg6 {[%clk 0:02:47.1]} 24... hxg6 {[%clk
0:01:25.5]} 25. f4 {[%clk 0:02:46.6]} 25... Qf5 {[%clk 0:01:23]} 26. Qe2 {[%clk
0:02:43.8]} 26... Kg7 {[%clk 0:01:21.7]} 27. Bc2 {[%clk 0:02:43.7]} 27... Qf6
{[%clk 0:01:21.6]} 28. Bd3 {[%clk 0:02:43.8]} 28... Rh8 {[%clk 0:01:19.8]} 29.
Qg4 {[%clk 0:02:43.1]} 29... Ne3 {[%clk 0:01:19.3]} 30. Qg3 {[%clk 0:02:39.8]}
30... Nxf1 {[%clk 0:01:19.2]} 31. Bxf1 {[%clk 0:02:39.7]} 31... Rhd8 {[%clk
0:01:12.2]} 32. Rd1 {[%clk 0:02:37.8]} 32... b4 {[%clk 0:01:08.9]} 0-1

[Event "*** Titled Tuesday Blitz"]
[Site "Chess.com"]
[Date "2021.03.02"]
[Round "5"]
[White "dopolian"]
[Black "Artem_Koval"]
[Result "1-0"]
[WhiteElo "2399"]
[BlackElo "2221"]
[TimeControl "180+1"]
[EndTime "10:51:55 PST"]
[Termination "dopolian won on time"]

1. e4 {[%clk 0:03:00.9]} 1... c5 {[%clk 0:02:58.9]} 2. d3 {[%clk 0:02:57]} 2...
d6 {[%clk 0:02:56.3]} 3. Nf3 {[%clk 0:02:55.6]} 3... Nf6 {[%clk 0:02:54.7]} 4.
g3 {[%clk 0:02:55.5]} 4... e5 {[%clk 0:02:54]} 5. Bg2 {[%clk 0:02:55.5]} 5...
Bg4 {[%clk 0:02:53.2]} 6. h3 {[%clk 0:02:53.4]} 6... Bxf3 {[%clk 0:02:51.5]} 7.
Qxf3 {[%clk 0:02:51.5]} 7... Nc6 {[%clk 0:02:51.3]} 8. O-O {[%clk 0:02:50.6]}
8... Nd4 {[%clk 0:02:49.1]} 9. Qd1 {[%clk 0:02:50.7]} 9... Be7 {[%clk 0:02:42]}
10. f4 {[%clk 0:02:49.4]} 10... h5 {[%clk 0:01:45.1]} 11. c3 {[%clk 0:02:43.3]}
11... Nc6 {[%clk 0:01:44.1]} 12. Be3 {[%clk 0:02:40.9]} 1-0

[Event "*** Titled Tuesday Blitz"]
[Site "Chess.com"]
[Date "2021.03.02"]
[Round "5"]
[White "1800_strength"]
[Black "gumimis"]
[Result "1-0"]
[WhiteElo "2509"]
[BlackElo "2299"]
[TimeControl "180+1"]
[EndTime "10:52:04 PST"]
[Termination "1800_strength won by resignation"]

1. g4 {[%clk 0:03:00.9]} 1... d6 {[%clk 0:02:58.2]} 2. Bg2 {[%clk 0:02:55.4]}
2... Nc6 {[%clk 0:02:56.2]} 3. h3 {[%clk 0:02:55.5]} 3... h5 {[%clk 0:02:55.1]}
4. g5 {[%clk 0:02:55.1]} 4... h4 {[%clk 0:02:52.9]} 5. d4 {[%clk 0:02:54.6]}
5... g6 {[%clk 0:02:51.6]} 6. d5 {[%clk 0:02:54.9]} 6... Ne5 {[%clk 0:02:48.1]}
7. c4 {[%clk 0:02:54.7]} 7... a6 {[%clk 0:02:32.4]} 8. f4 {[%clk 0:02:53.3]}
8... Nxc4 {[%clk 0:02:31.9]} 9. Qd4 {[%clk 0:02:53.7]} 9... Ne5 {[%clk
0:02:14.9]} 10. fxe5 {[%clk 0:02:53.6]} 10... Bg7 {[%clk 0:02:12.7]} 11. Bf4
{[%clk 0:02:54.1]} 11... Bf5 {[%clk 0:01:49.7]} 12. Nc3 {[%clk 0:02:52.8]} 12...
Rh5 {[%clk 0:01:40.9]} 13. Nf3 {[%clk 0:02:46.9]} 13... c5 {[%clk 0:01:23.2]}
14. dxc6 {[%clk 0:02:45.7]} 14... bxc6 {[%clk 0:01:23.9]} 15. O-O {[%clk
0:02:41.2]} 15... Rb8 {[%clk 0:01:19.3]} 16. Qa4 {[%clk 0:02:33.4]} 16... Qb6+
{[%clk 0:01:13.3]} 17. Kh1 {[%clk 0:02:25.5]} 17... d5 {[%clk 0:01:08.2]} 18.
Nxd5 {[%clk 0:02:25]} 18... Qxb2 {[%clk 0:01:04.4]} 19. Qxc6+ {[%clk 0:02:24.9]}
19... Bd7 {[%clk 0:01:03.4]} 20. Qc5 {[%clk 0:02:22.2]} 20... Rc8 {[%clk
0:00:59.5]} 21. Qb4 {[%clk 0:02:17.3]} 21... Qxb4 {[%clk 0:00:55.4]} 22. Nxb4
{[%clk 0:02:18.2]} 22... e6 {[%clk 0:00:54.9]} 23. Rac1 {[%clk 0:02:17.5]} 23...
Rb8 {[%clk 0:00:52.3]} 24. Nxa6 {[%clk 0:02:17.7]} 24... Ra8 {[%clk 0:00:52.6]}
25. Nc7+ {[%clk 0:02:17.7]} 1-0

[Event "*** Titled Tuesday Blitz"]
[Site "Chess.com"]
[Date "2021.03.02"]
[Round "5"]
[White "KRSilva"]
[Black "MergenKakabaev"]
[Result "0-1"]
[WhiteElo "2221"]
[BlackElo "2388"]
[TimeControl "180+1"]
[EndTime "10:52:06 PST"]
[Termination "MergenKakabaev won by resignation"]

1. d4 {[%clk 0:02:38.7]} 1... d5 {[%clk 0:02:58.2]} 2. Nf3 {[%clk 0:02:38.2]}
2... Nf6 {[%clk 0:02:57.7]} 3. e3 {[%clk 0:02:38.4]} 3... Bf5 {[%clk 0:02:53.8]}
4. c4 {[%clk 0:02:37.3]} 4... c6 {[%clk 0:02:53.4]} 5. Nc3 {[%clk 0:02:37.4]}
5... Nbd7 {[%clk 0:02:51.5]} 6. Bd3 {[%clk 0:02:36.4]} 6... Bxd3 {[%clk
0:02:50.6]} 7. Qxd3 {[%clk 0:02:35]} 7... e6 {[%clk 0:02:50.7]} 8. O-O {[%clk
0:02:34.5]} 8... Bb4 {[%clk 0:02:49.7]} 9. cxd5 {[%clk 0:02:26.9]} 9... cxd5
{[%clk 0:02:49.1]} 10. a3 {[%clk 0:02:27]} 10... Bxc3 {[%clk 0:02:48.5]} 11.
bxc3 {[%clk 0:02:27.9]} 11... O-O {[%clk 0:02:48.8]} 12. a4 {[%clk 0:02:27.4]}
12... Nb6 {[%clk 0:02:46.5]} 13. Nd2 {[%clk 0:02:25.5]} 13... Rc8 {[%clk
0:02:37.1]} 14. a5 {[%clk 0:02:11.8]} 14... Nc4 {[%clk 0:02:35.1]} 15. Nxc4
{[%clk 0:02:11.8]} 15... Rxc4 {[%clk 0:02:36]} 16. Ba3 {[%clk 0:02:11.4]} 16...
Re8 {[%clk 0:02:34.4]} 17. Bb4 {[%clk 0:02:11.7]} 17... Qc7 {[%clk 0:02:31.6]}
18. f3 {[%clk 0:02:07.6]} 18... Rc8 {[%clk 0:02:30.9]} 19. e4 {[%clk 0:02:07.1]}
19... dxe4 {[%clk 0:02:26.9]} 20. fxe4 {[%clk 0:02:06.4]} 20... Qc6 {[%clk
0:02:26.3]} 21. Rae1 {[%clk 0:02:03.1]} 21... e5 {[%clk 0:02:24.9]} 22. dxe5
{[%clk 0:01:54.6]} 22... Nxe4 {[%clk 0:02:23.6]} 23. Kh1 {[%clk 0:01:48]} 23...
h6 {[%clk 0:02:18.4]} 24. Rf4 {[%clk 0:01:33.2]} 24... Nxc3 {[%clk 0:02:07.4]}
25. Bxc3 {[%clk 0:01:26.5]} 25... Rxf4 {[%clk 0:02:03.3]} 26. Bd2 {[%clk
0:01:25.2]} 26... Rf2 {[%clk 0:02:01]} 0-1

[Event "*** Titled Tuesday Blitz"]
[Site "Chess.com"]
[Date "2021.03.02"]
[Round "5"]
[White "Gerodot71"]
[Black "oogee"]
[Result "1-0"]
[WhiteElo "2554"]
[BlackElo "2376"]
[TimeControl "180+1"]
[EndTime "10:52:19 PST"]
[Termination "Gerodot71 won by resignation"]

1. d4 {[%clk 0:03:00.9]} 1... Nf6 {[%clk 0:02:59.3]} 2. c4 {[%clk 0:03:01.2]}
2... g6 {[%clk 0:02:59.1]} 3. Nc3 {[%clk 0:03:01]} 3... Bg7 {[%clk 0:02:58.7]}
4. e4 {[%clk 0:03:00.7]} 4... d6 {[%clk 0:02:59]} 5. Be2 {[%clk 0:03:00.9]} 5...
O-O {[%clk 0:02:58.8]} 6. Be3 {[%clk 0:03:01.3]} 6... Na6 {[%clk 0:02:57.1]} 7.
h4 {[%clk 0:02:58.8]} 7... c5 {[%clk 0:02:54]} 8. d5 {[%clk 0:02:54.5]} 8... e6
{[%clk 0:02:53.2]} 9. h5 {[%clk 0:02:45.2]} 9... exd5 {[%clk 0:02:52.8]} 10.
exd5 {[%clk 0:02:46.1]} 10... Bf5 {[%clk 0:02:36.5]} 11. g4 {[%clk 0:02:36.8]}
11... Ne4 {[%clk 0:02:35.9]} 12. gxf5 {[%clk 0:02:29.9]} 12... Nxc3 {[%clk
0:02:33.4]} 13. bxc3 {[%clk 0:02:29.5]} 13... Qf6 {[%clk 0:02:10]} 14. Kf1
{[%clk 0:02:18.2]} 14... Qxf5 {[%clk 0:02:07.2]} 15. Qd3 {[%clk 0:02:07.2]}
15... Qf6 {[%clk 0:01:46.7]} 16. Rb1 {[%clk 0:02:05]} 16... b6 {[%clk
0:01:25.3]} 17. Nf3 {[%clk 0:02:01]} 17... Rae8 {[%clk 0:01:23.5]} 18. Rc1
{[%clk 0:01:37.1]} 18... Nc7 {[%clk 0:01:21.1]} 19. Bg5 {[%clk 0:01:34.1]} 19...
Qf5 {[%clk 0:01:19]} 20. Qxf5 {[%clk 0:01:33.7]} 20... gxf5 {[%clk 0:01:19.4]}
21. h6 {[%clk 0:01:33.8]} 21... Be5 {[%clk 0:01:16.4]} 22. Nxe5 {[%clk
0:01:30.4]} 22... dxe5 {[%clk 0:01:15.7]} 23. Bf6 {[%clk 0:01:30.4]} 1-0

[Event "*** Titled Tuesday Blitz"]
[Site "Chess.com"]
[Date "2021.03.02"]
[Round "5"]
[White "Blitzking642"]
[Black "Treacherous_horse64"]
[Result "1-0"]
[WhiteElo "2371"]
[BlackElo "2583"]
[TimeControl "180+1"]
[EndTime "10:52:42 PST"]
[Termination "Blitzking642 won by resignation"]

1. e4 {[%clk 0:03:00.9]} 1... c6 {[%clk 0:02:30.1]} 2. c4 {[%clk 0:03:00.2]}
2... d5 {[%clk 0:02:28.7]} 3. cxd5 {[%clk 0:03:01.1]} 3... cxd5 {[%clk
0:02:29.6]} 4. exd5 {[%clk 0:03:01.7]} 4... Nf6 {[%clk 0:02:28.4]} 5. Qa4+
{[%clk 0:03:01.9]} 5... Nbd7 {[%clk 0:02:19.1]} 6. Nc3 {[%clk 0:03:02.4]} 6...
g6 {[%clk 0:02:19.1]} 7. Bc4 {[%clk 0:03:02.7]} 7... Bg7 {[%clk 0:02:18.8]} 8.
d3 {[%clk 0:03:03.3]} 8... O-O {[%clk 0:02:17.1]} 9. Nf3 {[%clk 0:03:03.7]} 9...
a6 {[%clk 0:02:14.3]} 10. Qa3 {[%clk 0:03:04.2]} 10... Ne8 {[%clk 0:01:56.4]}
11. O-O {[%clk 0:02:54.9]} 11... Nd6 {[%clk 0:01:50.8]} 12. Bf4 {[%clk
0:02:49.5]} 12... Nxc4 {[%clk 0:01:15.2]} 13. dxc4 {[%clk 0:02:49.1]} 13... b5
{[%clk 0:01:06.7]} 14. Nxb5 {[%clk 0:02:44.6]} 14... Bxb2 {[%clk 0:01:00.6]} 15.
Qxb2 {[%clk 0:02:41.9]} 15... axb5 {[%clk 0:01:00]} 16. Bh6 {[%clk 0:02:42.4]}
16... Nf6 {[%clk 0:00:55.8]} 17. Bxf8 {[%clk 0:02:42.4]} 17... Qxf8 {[%clk
0:00:56.1]} 18. cxb5 {[%clk 0:02:33.7]} 18... Qd8 {[%clk 0:00:54.9]} 19. Rfd1
{[%clk 0:02:28.7]} 19... Bb7 {[%clk 0:00:54.6]} 20. Ne5 {[%clk 0:02:25]} 20...
Nxd5 {[%clk 0:00:48.6]} 21. Nc6 {[%clk 0:02:21.7]} 21... Qd6 {[%clk 0:00:48.1]}
22. Rxd5 {[%clk 0:02:19.7]} 22... Qe6 {[%clk 0:00:44]} 23. Re5 {[%clk
0:02:14.4]} 23... Qf6 {[%clk 0:00:42.6]} 24. Nxe7+ {[%clk 0:02:06.8]} 24... Kg7
{[%clk 0:00:41.4]} 25. Re2 {[%clk 0:01:56]} 25... Qxb2 {[%clk 0:00:39.8]} 26.
Rxb2 {[%clk 0:01:56.9]} 1-0

[Event "*** Titled Tuesday Blitz"]
[Site "Chess.com"]
[Date "2021.03.02"]
[Round "5"]
[White "FlySooHigh"]
[Black "WiktoriaPOL"]
[Result "1-0"]
[WhiteElo "2696"]
[BlackElo "2046"]
[TimeControl "180+1"]
[EndTime "10:52:43 PST"]
[Termination "FlySooHigh won by resignation"]

1. e4 {[%clk 0:03:00.9]} 1... c5 {[%clk 0:02:59.4]} 2. Nf3 {[%clk 0:02:59]} 2...
d6 {[%clk 0:02:59]} 3. Nc3 {[%clk 0:02:58.2]} 3... Nf6 {[%clk 0:02:52]} 4. e5
{[%clk 0:02:58.3]} 4... dxe5 {[%clk 0:02:50]} 5. Nxe5 {[%clk 0:02:59.2]} 5...
Nbd7 {[%clk 0:02:48.7]} 6. d4 {[%clk 0:02:58.6]} 6... Nxe5 {[%clk 0:02:43.6]} 7.
dxe5 {[%clk 0:02:59.5]} 7... Qxd1+ {[%clk 0:02:43.1]} 8. Kxd1 {[%clk 0:03:00.4]}
8... Ng4 {[%clk 0:02:41.6]} 9. Bb5+ {[%clk 0:03:00.8]} 9... Bd7 {[%clk
0:02:40.9]} 10. e6 {[%clk 0:03:00.7]} 10... Bxb5 {[%clk 0:02:37]} 11. Nxb5
{[%clk 0:03:01.6]} 11... Rd8+ {[%clk 0:02:25.8]} 12. Ke2 {[%clk 0:03:01]} 12...
fxe6 {[%clk 0:02:25.3]} 13. Nxa7 {[%clk 0:02:58.5]} 13... Kf7 {[%clk 0:02:23.8]}
14. Nb5 {[%clk 0:02:55.6]} 14... g6 {[%clk 0:02:21.7]} 15. f3 {[%clk 0:02:54.8]}
15... Ne5 {[%clk 0:02:21]} 16. Be3 {[%clk 0:02:36]} 16... b6 {[%clk 0:02:17.8]}
17. Rad1 {[%clk 0:02:32.2]} 17... Bg7 {[%clk 0:02:16.7]} 18. b3 {[%clk
0:02:32.2]} 18... Nc6 {[%clk 0:02:12.4]} 19. c3 {[%clk 0:02:24.5]} 19... Rxd1
{[%clk 0:02:10.1]} 20. Rxd1 {[%clk 0:02:23.7]} 20... Rd8 {[%clk 0:02:10.7]} 21.
Rxd8 {[%clk 0:02:12.6]} 21... Nxd8 {[%clk 0:02:11.6]} 22. Bf4 {[%clk 0:02:11.7]}
22... e5 {[%clk 0:02:10.8]} 23. Be3 {[%clk 0:02:07.7]} 23... Ke6 {[%clk
0:02:08.4]} 24. Kd3 {[%clk 0:02:01.6]} 24... Nc6 {[%clk 0:02:04.7]} 25. Nc7+
{[%clk 0:01:53.3]} 25... Kd7 {[%clk 0:01:40.9]} 26. Nd5 {[%clk 0:01:53]} 26...
e6 {[%clk 0:01:32.9]} 27. Nxb6+ {[%clk 0:01:51.5]} 27... Kc7 {[%clk 0:01:32.2]}
28. Bxc5 {[%clk 0:01:47.3]} 28... Nb8 {[%clk 0:01:30.9]} 29. Nc4 {[%clk
0:01:42.9]} 29... Kc6 {[%clk 0:01:29.3]} 30. Be3 {[%clk 0:01:39.8]} 30... Na6
{[%clk 0:01:27.6]} 31. a4 {[%clk 0:01:37.2]} 31... Nc5+ {[%clk 0:01:26.2]} 32.
Bxc5 {[%clk 0:01:37.2]} 32... Kxc5 {[%clk 0:01:26.4]} 33. b4+ {[%clk 0:01:37.5]}
33... Kc6 {[%clk 0:01:26.4]} 34. Ke4 {[%clk 0:01:37]} 34... Kb7 {[%clk
0:01:24.7]} 35. Nxe5 {[%clk 0:01:36.4]} 35... Bxe5 {[%clk 0:01:19.9]} 36. Kxe5
{[%clk 0:01:36.1]} 1-0

[Event "*** Titled Tuesday Blitz"]
[Site "Chess.com"]
[Date "2021.03.02"]
[Round "5"]
[White "JimmmyZhang"]
[Black "Chuchofrio1"]
[Result "1-0"]
[WhiteElo "2486"]
[BlackElo "2287"]
[TimeControl "180+1"]
[EndTime "10:52:51 PST"]
[Termination "JimmmyZhang won by resignation"]

1. e4 {[%clk 0:03:00.9]} 1... e5 {[%clk 0:02:58.1]} 2. Nf3 {[%clk 0:02:59.4]}
2... Nc6 {[%clk 0:02:57]} 3. Bb5 {[%clk 0:02:58.9]} 3... a6 {[%clk 0:02:55.2]}
4. Ba4 {[%clk 0:02:51.5]} 4... Nf6 {[%clk 0:02:53.9]} 5. O-O {[%clk 0:02:51.1]}
5... Be7 {[%clk 0:02:52.2]} 6. d3 {[%clk 0:02:41.9]} 6... b5 {[%clk 0:02:51.1]}
7. Bb3 {[%clk 0:02:40]} 7... O-O {[%clk 0:02:51.5]} 8. a4 {[%clk 0:02:39.1]}
8... b4 {[%clk 0:02:50.4]} 9. Nbd2 {[%clk 0:02:38.6]} 9... a5 {[%clk 0:02:49.1]}
10. Nc4 {[%clk 0:02:37.6]} 10... d6 {[%clk 0:02:46.8]} 11. h3 {[%clk 0:02:38]}
11... Be6 {[%clk 0:02:44.4]} 12. Ng5 {[%clk 0:02:36.6]} 12... Bd7 {[%clk
0:02:41.5]} 13. f4 {[%clk 0:02:34.5]} 13... exf4 {[%clk 0:02:31.6]} 14. Bxf4
{[%clk 0:02:33]} 14... d5 {[%clk 0:02:30.6]} 15. Ne5 {[%clk 0:02:13]} 15... Nxe5
{[%clk 0:02:28.4]} 16. Bxe5 {[%clk 0:02:12.2]} 16... Nxe4 {[%clk 0:02:25.7]} 17.
Nxf7 {[%clk 0:02:03.4]} 17... Rxf7 {[%clk 0:02:21.7]} 18. Bxd5 {[%clk
0:01:56.1]} 18... Nf6 {[%clk 0:02:20.4]} 19. Bxf6 {[%clk 0:01:48.7]} 19... Bxf6
{[%clk 0:02:16.9]} 20. Qh5 {[%clk 0:01:49.2]} 20... Qe7 {[%clk 0:02:13.1]} 21.
Rae1 {[%clk 0:01:42]} 21... Qf8 {[%clk 0:02:12.3]} 22. g4 {[%clk 0:01:17.8]}
22... g6 {[%clk 0:01:43.2]} 23. Bxf7+ {[%clk 0:00:53.8]} 23... Qxf7 {[%clk
0:01:39.2]} 24. Qc5 {[%clk 0:00:51.9]} 24... Qg7 {[%clk 0:01:36.1]} 25. Qd5+
{[%clk 0:00:48.9]} 25... Kh8 {[%clk 0:01:34.3]} 26. Qxa8+ {[%clk 0:00:45.9]} 1-0